fUSD/lending_fUSD_20260208
["ID","MTS","AMOUNT","RATE_DAILY","PERIOD"]
[404763670,1770515456074,-227.606216,0.00043835,120]
[404763671,1770515456084,-500.0,0.00043835,120]
[404763672,1770515456095,-500.0,0.00043835,120]
[404763673,1770515456106,-500.0,0.00043835,120]
[404763674,1770515456116,-500.0,0.00043835,120]
[404763675,1770515456126,-227.606216,0.00043835,120]
[404763676,1770515456135,-233.08419558,0.00043835,120]
[404763677,1770515456144,-500.0,0.00043835,120]
[404763678,1770515456154,-227.606216,0.00043835,120]
[404763679,1770515456162,-500.0,0.00043835,120]
[404763680,1770515456173,-227.606216,0.00043835,120]
[404763681,1770515456182,-500.0,0.00043835,120]
[404763682,1770515456193,-500.0,0.00043835,120]
[404763683,1770515456203,-500.0,0.00043835,120]
[404763684,1770515456212,-500.0,0.00043835,120]
[404763685,1770515456221,-500.0,0.00043835,120]
[404763686,1770515456230,-500.0,0.00043835,120]
[404763687,1770515456239,-500.0,0.00043835,120]
[404763688,1770515456248,-640.89723159,0.00043835,120]
[404763689,1770515456257,-284.3852292,0.00043835,120]
[404763690,1770515456265,-500.0,0.00043835,120]
[404763691,1770515456274,-500.0,0.00043835,120]
[404763692,1770515456284,-500.0,0.00043835,120]
[404763693,1770515456293,-500.0,0.00043835,120]
[404763694,1770515456301,-161.48562146,0.00043835,120]
[404763695,1770515456311,-500.0,0.00043835,120]
[404763696,1770515456319,-500.0,0.00043835,120]
[404763697,1770515456328,-500.0,0.00043835,120]
[404763698,1770515456337,-500.0,0.00043835,120]
[404763699,1770515456346,-500.0,0.00043835,120]
[404763700,1770515456355,-266.87008558,0.00043835,120]
[404763701,1770515456365,-496.15519858,0.00043835,120]
[404763702,1770515456375,-396.65196312,0.00043835,120]
[404763703,1770515456384,-292.25666066,0.00043835,120]
[404763704,1770515456393,-151.0,0.00043835,120]
[404763705,1770515456402,-151.0,0.00043835,120]
[404763706,1770515456412,-151.0,0.00043835,120]
[404763707,1770515456422,-151.0,0.00043835,120]
[404763708,1770515456432,-422.4432999,0.00043835,120]
[404763709,1770515456442,-154.3339199,0.00043835,120]
[404763710,1770515456454,-151.0,0.00043835,120]
[404763711,1770515456465,-1052.011915,0.00043835,120]
[404763712,1770515456477,-500.0,0.00043835,120]
[404763713,1770515456488,-1052.011915,0.00043835,120]
[404763714,1770515456502,-500.0,0.00043835,120]
[404763715,1770515456517,-575.2849,0.00043835,120]
[404763716,1770515456527,-189.86957073,0.00043835,120]
[404763717,1770515456537,-151.0,0.00043835,120]
[404763718,1770515456547,-1052.011915,0.00043835,120]
[404763719,1770515456557,-151.0,0.00043835,120]
[404763720,1770515456568,-1052.011915,0.00043835,120]
[404763721,1770515456578,-178.693762,0.00043835,120]
[404763722,1770515456589,-312.94720447,0.00043835,120]
[404763723,1770515456601,-270.734552,0.00043835,120]
[404763724,1770515456610,-500.0,0.00043835,120]
[404763725,1770515456619,-500.0,0.00043835,120]
[404763726,1770515456629,-178.693762,0.00043835,120]
[404763727,1770515456638,-500.0,0.00043835,120]
[404763728,1770515456648,-252.93243972,0.00043835,120]
[404763729,1770515456657,-625.66336267,0.00043835,120]
[404763730,1770515456669,-203.85438539,0.00043835,120]
[404763731,1770515456678,-1239.371305,0.00043835,120]
[404763732,1770515456687,-533.63180658,0.00043835,120]
[404763733,1770515456697,-178.693762,0.00043835,120]
[404763734,1770515456706,-1239.371305,0.00043835,120]
[404763735,1770515456715,-151.0,0.00043835,120]
[404763736,1770515456725,-500.0,0.00043835,120]
[404763737,1770515456734,-178.693762,0.00043835,120]
[404763738,1770515456743,-453.80120471,0.00043835,120]
[404763739,1770515456760,-500.0,0.00043835,120]
[404763740,1770515456771,-151.0,0.00043835,120]
[404763741,1770515456780,-176.80840032,0.00043835,120]
[404763742,1770515456790,-208.00206938,0.00043835,120]
[404763743,1770515456799,-1239.371305,0.00043835,120]
[404763744,1770515456808,-151.0,0.00043835,120]
[404763745,1770515456817,-155.243863,0.00043835,120]
[404763746,1770515456827,-1239.371305,0.00043835,120]
[404763747,1770515456836,-221.081642,0.00043835,31]
[404763748,1770515456847,-151.0,0.00043835,120]
[404763749,1770515456856,-151.0,0.00043835,120]
[404763750,1770515456865,-221.081642,0.00043835,31]
[404763751,1770515456874,-210.35857068,0.00043835,120]
[404763752,1770515456884,-155.39755215,0.00043835,120]
[404763753,1770515456893,-208.50458139,0.00043835,120]
[404763754,1770515456903,-221.081642,0.00043835,31]
[404763755,1770515456912,-151.0,0.00043835,120]
[404763756,1770515456922,-151.0,0.00043835,120]
[404763757,1770515456934,-221.081642,0.00043835,31]
[404763758,1770515456943,-151.0,0.00043835,120]
[404763759,1770515456953,-311.55175678,0.00043835,120]
[404763760,1770515456963,-172.780967,0.00043835,120]
[404763761,1770515456973,-166.38932129,0.00043835,120]
[404763762,1770515456985,-196.36745353,0.00043835,120]
[404763763,1770515456995,-500.0,0.00043835,120]
[404763764,1770515457006,-151.0,0.00043835,120]
[404763765,1770515457015,-500.0,0.00043835,120]
[404763766,1770515457025,-500.0,0.00043835,120]
[404763767,1770515457035,-500.0,0.00043835,120]
[404763768,1770515457045,-595.46143204,0.00043835,120]
[404763769,1770515457054,-500.0,0.00043835,120]
[404763770,1770515457064,-500.0,0.00043835,120]
[404763771,1770515457074,-500.0,0.00043835,120]
[404763772,1770515457084,-151.0,0.00043835,120]
[404763773,1770515457095,-500.0,0.00043835,120]
[404763774,1770515457108,-500.0,0.00043835,120]
[404763775,1770515457118,-500.0,0.00043835,120]
[404763776,1770515457128,-500.0,0.00043835,120]
[404763777,1770515457138,-500.0,0.00043835,120]
[404763778,1770515457148,-500.0,0.00043835,120]
[404763779,1770515457158,-500.0,0.00043835,120]
[404763780,1770515457168,-446.34121915,0.00043835,120]
[404763781,1770515457178,-500.0,0.00043835,120]
[404763782,1770515457188,-500.0,0.00043835,120]
[404763783,1770515457197,-500.0,0.00043835,120]
[404763784,1770515457207,-500.0,0.00043835,120]
[404763785,1770515457217,-561.23969575,0.00043835,120]
[404763786,1770515457227,-500.0,0.00043835,120]
[404763787,1770515457237,-500.0,0.00043835,120]
[404763788,1770515457247,-500.0,0.00043835,120]
[404763789,1770515457256,-246.90816961,0.00043835,120]
[404763790,1770515457266,-232.05409517,0.00043835,120]
[404763791,1770515457276,-500.0,0.00043835,120]
[404763792,1770515457286,-235.12786398,0.00043835,120]
[404763793,1770515457300,-528.41828337,0.00043835,120]
[404763794,1770515457311,-181.71051896,0.00043835,120]
[404763795,1770515457322,-500.0,0.00043835,120]
[404763796,1770515457331,-500.0,0.00043835,120]
[404763797,1770515457341,-500.0,0.00043835,120]
[404763798,1770515457350,-500.0,0.00043835,120]
[404763799,1770515457361,-500.0,0.00043835,120]
[404763800,1770515457371,-500.0,0.00043835,120]
[404763801,1770515457381,-500.0,0.00043835,120]
[404763802,1770515457391,-500.0,0.00043835,120]
[404763803,1770515457402,-234.45076428,0.00043835,120]
[404763804,1770515457412,-500.0,0.00043835,120]
[404763805,1770515457422,-500.0,0.00043835,120]
[404763806,1770515457432,-516.75502039,0.00043835,120]
[404763807,1770515457442,-500.0,0.00043835,120]
[404763808,1770515457453,-500.0,0.00043835,120]
[404763809,1770515457462,-500.0,0.00043835,120]
[404763810,1770515457472,-500.0,0.00043835,120]
[404763811,1770515457482,-156.25499552,0.00043835,120]
[404763812,1770515457495,-500.0,0.00043835,120]
[404763813,1770515457505,-500.0,0.00043835,120]
[404763814,1770515457515,-500.0,0.00043835,120]
[404763815,1770515457525,-500.0,0.00043835,120]
[404763816,1770515457535,-164.78930235,0.00043835,120]
[404763817,1770515457546,-500.0,0.00043835,120]
[404763818,1770515457556,-500.0,0.00043835,120]
[404763819,1770515457566,-500.0,0.00043835,120]
[404763820,1770515457577,-628.86280864,0.00043835,120]
[404763821,1770515457588,-339.51953535,0.00043835,120]
[404763822,1770515457600,-1288.09761471,0.00043835,7]
[404763823,1770515457610,-200.0,0.00043835,7]
[404763824,1770515457620,-151.000008,0.00043835,120]
[404763825,1770515457630,-500.0,0.00043835,120]
[404763826,1770515457641,-500.0,0.00043835,120]
[404763827,1770515457652,-500.0,0.00043835,120]
[404763828,1770515457662,-500.0,0.00043835,120]
[404763829,1770515457672,-500.0,0.00043835,120]
[404763830,1770515457686,-500.0,0.00043835,120]
[404763831,1770515457697,-500.0,0.00043835,120]
[404763832,1770515457708,-500.0,0.00043835,120]
[404763833,1770515457719,-243.49859148,0.00043835,120]
[404763834,1770515457729,-500.0,0.00043835,120]
[404763835,1770515457739,-500.0,0.00043835,120]
[404763836,1770515457748,-151.0,0.00043835,120]
[404763837,1770515457758,-362.40634067,0.00043835,120]
[404763838,1770515457768,-435.72047607,0.00043835,120]
[404763839,1770515457779,-500.0,0.00043835,120]
[404763840,1770515457788,-500.0,0.00043835,120]
[404763841,1770515457798,-284.09194595,0.00043835,120]
[404763842,1770515457808,-151.0,0.00043835,120]
[404763843,1770515457819,-267.74993392,0.00043835,120]
[404763844,1770515457829,-500.0,0.00043835,120]
[404763845,1770515457838,-500.0,0.00043835,120]
[404763846,1770515457849,-151.0,0.00043835,120]
[404763847,1770515457859,-571.43939164,0.00043835,120]
[404763848,1770515457870,-500.0,0.00043835,120]
[404763849,1770515457884,-500.0,0.00043835,120]
[404763850,1770515457894,-151.0,0.00043835,120]
[404763851,1770515457906,-510.60430656,0.00043835,120]
[404763852,1770515457917,-500.0,0.00043835,120]
[404763853,1770515457929,-162.282853,0.00043835,120]
[404763854,1770515457939,-191.08972978,0.00043835,120]
[404763855,1770515457949,-500.0,0.00043835,120]
[404763856,1770515457959,-173.43556626,0.00043835,30]
[404763857,1770515457969,-500.0,0.00043835,120]
[404763858,1770515457979,-500.0,0.00043835,120]
[404763859,1770515457990,-500.0,0.00043835,120]
[404763860,1770515458001,-500.0,0.00043835,120]
[404763861,1770515458011,-541.17881066,0.00043835,120]
[404763862,1770515458021,-518.10471303,0.00043835,120]
[404763863,1770515458031,-500.0,0.00043835,120]
[404763864,1770515458042,-500.0,0.00043835,120]
[404763865,1770515458053,-500.0,0.00043835,120]
[404763866,1770515458067,-500.0,0.00043835,120]
[404763867,1770515458077,-500.0,0.00043835,120]
[404763868,1770515458090,-391.02250849,0.00043835,120]
[404763869,1770515458101,-500.0,0.00043835,120]
[404763870,1770515458111,-500.0,0.00043835,120]
[404763871,1770515458122,-500.0,0.00043835,120]
[404763872,1770515458133,-151.0,0.00043835,120]
[404763873,1770515458144,-500.0,0.00043835,120]
[404763874,1770515458155,-500.0,0.00043835,120]
[404763875,1770515458165,-500.0,0.00043835,120]
[404763876,1770515458176,-500.0,0.00043835,120]
[404763877,1770515458187,-574.42607523,0.00043835,120]
[404763878,1770515458199,-197.93378283,0.00043835,120]
[404763879,1770515458209,-500.0,0.00043835,120]
[404763880,1770515458221,-169.109887,0.00043835,120]
[404763881,1770515458232,-500.0,0.00043835,120]
[404763882,1770515458243,-500.0,0.00043835,120]
[404763883,1770515458254,-500.0,0.00043835,120]
[404763884,1770515458264,-244.50111106,0.00043835,120]
[404763885,1770515458274,-500.0,0.00043835,120]
[404763886,1770515458284,-171.01584892,0.00043835,120]
[404763887,1770515458294,-500.0,0.00043835,120]
[404763888,1770515458304,-500.0,0.00043835,120]
[404763889,1770515458315,-500.0,0.00043835,120]
[404763890,1770515458325,-500.0,0.00043835,120]
[404763891,1770515458335,-500.0,0.00043835,120]
[404763892,1770515458345,-500.0,0.00043835,120]
[404763893,1770515458355,-500.0,0.00043835,120]
[404763894,1770515458365,-500.0,0.00043835,120]
[404763895,1770515458375,-500.0,0.00043835,120]
[404763896,1770515458385,-500.0,0.00043835,120]
[404763897,1770515458395,-212.17638498,0.00043835,120]
[404763898,1770515458406,-500.0,0.00043835,120]
[404763899,1770515458416,-500.0,0.00043835,120]
[404763900,1770515458426,-500.0,0.00043835,120]
[404763901,1770515458438,-500.0,0.00043835,120]
[404763902,1770515458456,-500.0,0.00043835,120]
[404763903,1770515458468,-500.0,0.00043835,120]
[404763904,1770515458479,-500.0,0.00043835,120]
[404763905,1770515458492,-500.0,0.00043835,120]
[404763906,1770515458502,-516.17738671,0.00043835,120]
[404763907,1770515458514,-500.0,0.00043835,120]
[404763908,1770515458525,-500.0,0.00043835,120]
[404763909,1770515458536,-500.0,0.00043835,120]
[404763910,1770515458546,-500.0,0.00043835,120]
[404763911,1770515458558,-500.0,0.00043835,120]
[404763912,1770515458569,-500.0,0.00043835,2]
[404763913,1770515458579,-570.44312998,0.00043835,120]
[404763914,1770515458591,-500.0,0.00043835,2]
[404763915,1770515458607,-500.0,0.00043835,2]
[404763916,1770515458620,-500.0,0.00043835,2]
[404763917,1770515458631,-151.0,0.00043835,14]
[404763918,1770515458646,-500.0,0.00043835,2]
[404763919,1770515458656,-500.0,0.00043835,2]
[404763920,1770515458666,-634.09395892,0.00043835,120]
[404763921,1770515458679,-500.0,0.00043835,120]
[404763922,1770515458689,-500.0,0.00043835,2]
[404763923,1770515458700,-500.0,0.00043835,120]
[404763924,1770515458711,-500.0,0.00043835,2]
[404763925,1770515458721,-500.0,0.00043835,120]
[404763926,1770515458731,-500.0,0.00043835,2]
[404763927,1770515458741,-500.0,0.00043835,120]
[404763928,1770515458751,-500.0,0.00043835,2]
[404763929,1770515458761,-500.0,0.00043835,120]
[404763930,1770515458771,-271.88916681,0.00043835,2]
[404763931,1770515458781,-151.0,0.00043835,14]
[404763932,1770515458791,-500.0,0.00043835,120]
[404763933,1770515458801,-500.0,0.00043835,120]
[404763934,1770515458811,-500.0,0.00043835,120]
[404763935,1770515458822,-516.41645296,0.00043835,120]
[404763936,1770515458836,-500.0,0.00043835,120]
[404763937,1770515458846,-500.0,0.00043835,120]
[404763938,1770515458857,-500.0,0.00043835,120]
[404763939,1770515458867,-500.0,0.00043835,120]
[404763940,1770515458878,-500.0,0.00043835,120]
[404763941,1770515458889,-279.37947219,0.00043835,120]
[404763942,1770515458900,-500.0,0.00043835,120]
[404763943,1770515458912,-500.0,0.00043835,120]
[404763944,1770515458923,-523.28522367,0.00043835,120]
[404763945,1770515458934,-500.0,0.00043835,120]
[404763946,1770515458945,-151.0,0.00043835,14]
[404763947,1770515458957,-500.0,0.00043835,120]
[404763948,1770515458968,-493.00458441,0.00043835,120]
[404763949,1770515458979,-500.0,0.00043835,2]
[404763950,1770515458990,-500.0,0.00043835,120]
[404763951,1770515459002,-500.0,0.00043835,2]
[404763952,1770515459012,-500.0,0.00043835,120]
[404763953,1770515459023,-500.0,0.00043835,120]
[404763954,1770515459033,-500.0,0.00043835,2]
[404763955,1770515459043,-500.0,0.00043835,120]
[404763956,1770515459053,-540.29360459,0.00043835,120]
[404763957,1770515459063,-500.0,0.00043835,2]
[404763958,1770515459073,-500.0,0.00043835,120]
[404763959,1770515459083,-500.0,0.00043835,2]
[404763960,1770515459093,-500.0,0.00043835,120]
[404763961,1770515459103,-500.0,0.00043835,2]
[404763962,1770515459113,-500.0,0.00043835,120]
[404763963,1770515459123,-151.0,0.00043835,14]
[404763964,1770515459133,-500.0,0.00043835,2]
[404763965,1770515459143,-500.0,0.00043835,120]
[404763966,1770515459153,-500.0,0.00043835,120]
[404763967,1770515459164,-500.0,0.00043835,2]
[404763968,1770515459174,-500.0,0.00043835,120]
[404763969,1770515459184,-500.0,0.00043835,120]
[404763970,1770515459194,-500.0,0.00043835,2]
[404763971,1770515459208,-551.46429683,0.00043835,120]
[404763972,1770515459227,-152.65241898,0.00043835,120]
[404763973,1770515459238,-248.41264527,0.00043835,2]
[404763974,1770515459248,-500.0,0.00043835,120]
[404763975,1770515459259,-222.0802932,0.00043835,120]
[404763976,1770515459268,-500.0,0.00043835,120]
[404763977,1770515459279,-500.0,0.00043835,120]
[404763978,1770515459289,-500.0,0.00043835,120]
[404763979,1770515459300,-500.0,0.00043835,120]
[404763980,1770515459311,-500.0,0.00043835,120]
[404763981,1770515459504,-409.75753102,0.00043835,120]
[404763982,1770515459514,-500.0,0.00043835,120]
[404763983,1770515459523,-500.0,0.00043835,120]
[404763984,1770515459533,-500.0,0.00043835,120]
[404763985,1770515459546,-500.0,0.00043835,120]
[404763986,1770515459555,-500.0,0.00043835,120]
[404763987,1770515459565,-500.0,0.00043835,120]
[404763988,1770515459575,-500.0,0.00043835,120]
[404763989,1770515459585,-500.0,0.00043835,120]
[404763990,1770515459594,-500.0,0.00043835,120]
[404763991,1770515459608,-500.0,0.00043835,120]
[404763992,1770515459618,-500.0,0.00043835,120]
[404763993,1770515459628,-526.33141067,0.00043835,120]
[404763994,1770515459638,-500.0,0.00043835,120]
[404763995,1770515459648,-260.46332664,0.00043835,120]
[404763996,1770515459658,-5400.0,0.00043836,2]
[404763997,1770515459667,-1000.0,0.00043836,30]
[404763998,1770515459677,-209.6,0.0004384,120]
[404763999,1770515459687,-163.02793945,0.0004384,120]
[404764000,1770515459696,-163.02793945,0.0004384,120]
[404764001,1770515459706,-744.5,0.000439,30]
[404764002,1770515459717,-13089.0,0.00043926,7]
[404764003,1770515459727,-1443.88138384,0.0004395,120]
[404764004,1770515459738,-2000.0,0.0004396,3]
[404764005,1770515459747,-149323.49690166,0.00044,55]
[404764006,1770515459758,-2055.7241795,0.00044,30]
[404764007,1770515459768,-2000.0,0.00044,30]
[404764008,1770515459780,-20000.0,0.00044,120]
[404764009,1770515459791,-5000.0,0.00044,120]
[404764010,1770515459802,-444.08903806,0.00044,120]
[404764011,1770515459815,-1371.781911,0.00044,120]
[404764012,1770515459824,-472.3318922,0.00044,120]
[404764013,1770515459835,-737.3113,0.00044,90]
[404764014,1770515459844,-500.0,0.00044,120]
[404764015,1770515459853,-2773.35,0.00044004,120]
[404764016,1770515459862,-151.0,0.00044055,120]
[404764017,1770515459872,-151.0,0.00044055,120]
[404764018,1770515459881,-205.41387577,0.00044055,120]
[404764019,1770515459890,-159.12337747,0.00044055,14]
[404764020,1770515459899,-163.02,0.00044068,120]
[404764021,1770515459908,-202.02,0.00044068,120]
[404764022,1770515459918,-193.58,0.00044068,120]
[404764023,1770515459927,-201.91257544,0.00044068,19]
[404764024,1770515459936,-311.7457242,0.00044068,2]
[404764025,1770515459945,-150.0,0.000441,29]
[404764026,1770515459955,-150.0,0.000441,29]
[404764027,1770515459964,-150.0,0.000441,73]
[404764028,1770515459973,-150.0,0.000441,74]
[404764029,1770515459982,-240.15,0.000441,74]
[404764030,1770515459991,-253.0,0.000441,45]
[404764031,1770515460000,-150.0,0.000441,2]
[404764032,1770515460009,-240.314995,0.000441,10]
[404764033,1770515460019,-200.461407,0.000441,26]
[404764034,1770515460030,-2000.0,0.000441,7]
[404764035,1770515460039,-1000.0,0.0004411,30]
[404764036,1770515460049,-301.0,0.00044137,120]
[404764037,1770515460059,-150.0,0.00044137,2]
[404764038,1770515460068,-150.0,0.00044137,2]
[404764039,1770515460078,-4671.45366529,0.00044137,2]
[404764040,1770515460088,-3445.92703626,0.00044137,2]
[404764041,1770515460097,-150.0,0.00044137,2]
[404764042,1770515460108,-13413.59595424,0.00044137,2]
[404764043,1770515460119,-53005.0,0.00044139,30]
[404764044,1770515460129,-312.0,0.00044144,60]
[404764045,1770515460139,-888.0,0.00044151,60]
[404764046,1770515460148,-888.0,0.00044151,60]
[404764047,1770515460158,-888.0,0.00044151,60]
[404764048,1770515460168,-888.0,0.00044151,60]
[404764049,1770515460177,-888.0,0.00044151,60]
[404764050,1770515460187,-800.0,0.00044152,16]
[404764051,1770515460197,-800.0,0.00044152,16]
[404764052,1770515460206,-800.0,0.00044152,16]
[404764053,1770515460215,-800.0,0.00044152,16]
[404764054,1770515460224,-800.0,0.00044152,16]
[404764055,1770515460234,-829.56170862,0.00044152,16]
[404764056,1770515460243,-325.40939326,0.00044154,7]
[404764057,1770515460252,-151.0,0.00044155,120]
[404764058,1770515460261,-240.95361,0.00044155,120]
[404764059,1770515460270,-151.0,0.00044155,120]
[404764060,1770515460280,-151.0,0.00044155,120]
[404764061,1770515460289,-151.0,0.00044155,120]
[404764062,1770515460299,-217.63757,0.00044155,120]
[404764063,1770515460308,-151.0,0.00044155,120]
[404764064,1770515460318,-151.0,0.00044155,120]
[404764065,1770515460327,-151.0,0.00044155,120]
[404764066,1770515460336,-151.0,0.00044155,120]
[404764067,1770515460345,-151.0,0.00044155,120]
[404764068,1770515460354,-151.0,0.00044155,120]
[404764069,1770515460364,-151.0,0.00044155,120]
[404764070,1770515460374,-151.0,0.00044155,120]
[404764071,1770515460383,-151.0,0.00044155,120]
[404764072,1770515460392,-151.0,0.00044155,120]
[404764073,1770515460402,-151.0,0.00044155,120]
[404764074,1770515460412,-151.0,0.00044155,120]
[404764075,1770515460421,-151.0,0.00044155,120]
[404764076,1770515460431,-188.066268,0.00044155,120]
[404764077,1770515460441,-151.0,0.00044155,120]
[404764078,1770515460451,-151.0,0.00044155,120]
[404764079,1770515460460,-163.904636,0.00044155,120]
[404764080,1770515460469,-212.550023,0.00044155,120]
[404764081,1770515460478,-212.550023,0.00044155,120]
[404764082,1770515460487,-212.550023,0.00044155,120]
[404764083,1770515460496,-212.550023,0.00044155,120]
[404764084,1770515460505,-212.550023,0.00044155,120]
[404764085,1770515460515,-212.550023,0.00044155,120]
[404764086,1770515460524,-212.550023,0.00044155,120]
[404764087,1770515460534,-212.550023,0.00044155,120]
[404764088,1770515460544,-212.550023,0.00044155,120]
[404764089,1770515460553,-212.550023,0.00044155,120]
[404764090,1770515460564,-212.550023,0.00044155,120]
[404764091,1770515460574,-212.550023,0.00044155,120]
[404764092,1770515460585,-212.550023,0.00044155,120]
[404764093,1770515460595,-212.550023,0.00044155,120]
[404764094,1770515460613,-212.550023,0.00044155,120]
[404764095,1770515460622,-212.550025,0.00044155,120]
[404764096,1770515460632,-151.0,0.00044155,120]
[404764097,1770515460642,-151.0,0.00044155,120]
[404764098,1770515460651,-160.143387,0.00044155,120]
[404764099,1770515460661,-151.0,0.00044155,120]
[404764100,1770515460671,-151.0,0.00044155,120]
[404764101,1770515460680,-151.0,0.00044155,120]
[404764102,1770515460690,-151.0,0.00044155,120]
[404764103,1770515460699,-151.0,0.00044155,120]
[404764104,1770515460708,-151.0,0.00044155,120]
[404764105,1770515460718,-151.0,0.00044155,120]
[404764106,1770515460727,-151.0,0.00044155,120]
[404764107,1770515460739,-151.0,0.00044155,120]
[404764108,1770515460748,-151.0,0.00044155,120]
[404764109,1770515460758,-151.0,0.00044155,120]
[404764110,1770515460767,-151.0,0.00044155,120]
[404764111,1770515460776,-151.0,0.00044155,120]
[404764112,1770515460785,-151.0,0.00044155,120]
[404764113,1770515460795,-177.713574,0.00044155,120]
[404764114,1770515460804,-151.0,0.00044155,120]
[404764115,1770515460816,-151.0,0.00044155,120]
[404764116,1770515460826,-158.1054,0.00044155,120]
[404764117,1770515460835,-151.0,0.00044155,120]
[404764118,1770515460845,-151.0,0.00044155,120]
[404764119,1770515460855,-151.0,0.00044155,120]
[404764120,1770515460864,-151.0,0.00044155,120]
[404764121,1770515460874,-151.0,0.00044155,120]
[404764122,1770515460884,-151.0,0.00044155,120]
[404764123,1770515460894,-151.0,0.00044155,120]
[404764124,1770515460904,-151.0,0.00044155,120]
[404764125,1770515460913,-179.897801,0.00044155,120]
[404764126,1770515460923,-151.0,0.00044155,120]
[404764127,1770515460932,-151.0,0.00044155,120]
[404764128,1770515460942,-151.0,0.00044155,120]
[404764129,1770515460953,-151.0,0.00044155,120]
[404764130,1770515460963,-151.0,0.00044155,120]
[404764131,1770515460972,-151.0,0.00044155,120]
[404764132,1770515460982,-151.0,0.00044155,120]
[404764133,1770515460992,-151.0,0.00044155,120]
[404764134,1770515461001,-151.0,0.00044155,120]
[404764135,1770515461010,-151.0,0.00044155,120]
[404764136,1770515461019,-220.285929,0.00044155,120]
[404764137,1770515461028,-151.0,0.00044155,120]
[404764138,1770515461037,-185.192251,0.00044155,120]
[404764139,1770515461047,-220.285929,0.00044155,120]
[404764140,1770515461056,-151.0,0.00044155,120]
[404764141,1770515461066,-220.285929,0.00044155,120]
[404764142,1770515461075,-277.691884,0.00044155,120]
[404764143,1770515461084,-151.0,0.00044155,120]
[404764144,1770515461094,-220.285929,0.00044155,120]
[404764145,1770515461107,-151.0,0.00044155,120]
[404764146,1770515461122,-151.0,0.00044155,120]
[404764147,1770515461136,-151.0,0.00044155,120]
[404764148,1770515461149,-220.285929,0.00044155,120]
[404764149,1770515461160,-151.0,0.00044155,120]
[404764150,1770515461172,-151.0,0.00044155,120]
[404764151,1770515461185,-151.0,0.00044155,120]
[404764152,1770515461198,-220.285929,0.00044155,120]
[404764153,1770515461212,-155.424282,0.00044155,120]
[404764154,1770515461226,-151.0,0.00044155,120]
[404764155,1770515461241,-220.285929,0.00044155,120]
[404764156,1770515461255,-151.0,0.00044155,120]
[404764157,1770515461268,-220.285929,0.00044155,120]
[404764158,1770515461280,-151.0,0.00044155,120]
[404764159,1770515461293,-220.285929,0.00044155,120]
[404764160,1770515461304,-151.0,0.00044155,120]
[404764161,1770515461317,-220.285929,0.00044155,120]
[404764162,1770515461330,-151.0,0.00044155,120]
[404764163,1770515461343,-220.285929,0.00044155,120]
[404764164,1770515461357,-151.0,0.00044155,120]
[404764165,1770515461370,-220.285929,0.00044155,120]
[404764166,1770515461383,-283.917301,0.00044155,120]
[404764167,1770515461396,-220.285929,0.00044155,120]
[404764168,1770515461409,-220.851191,0.00044155,120]
[404764169,1770515461421,-220.285929,0.00044155,120]